bitfinex-derivatives/quotes_ETHF0:USTF0_20250918
["timestamp","ask_amount","ask_price","bid_price","bid_amount"]
[1758184892452,0.7174,4601.9,4601.8,3.2078]
[1758184896249,0.7174,4601.9,4601.3,3.2078]
[1758184896250,0.1227,4601.5,4601.3,3.2078]
[1758184896453,0.6913,4601.4,4601.3,3.2078]
[1758184903349,0.481,4600.9,4600.8,3.2078]
[1758184905252,0.2888,4600.9,4600.8,3.2078]
[1758184911354,0.1227,4601.0,4600.8,3.2078]
[1758184911760,0.2888,4600.9,4600.8,3.2078]
[1758184913360,0.1227,4601.5,4600.8,3.2078]
[1758184913564,0.2888,4602.3,4601.4,3.2078]
[1758184913865,0.3018,4602.4,4602.0,3.2078]
[1758184914060,0.5022,4602.1,4602.0,3.2078]
[1758184915764,0.694,4602.1,4602.0,3.2078]
[1758184916362,0.1233,4602.5,4602.2,0.39095]
[1758184916565,0.3018,4602.4,4602.2,0.221]
[1758184917164,0.1233,4602.5,4602.2,0.221]
[1758184917360,0.3018,4602.4,4602.2,0.221]
[1758184917864,0.1227,4603.0,4602.3,4.0]
[1758184918060,0.4266,4603.0,4602.9,3.2078]
[1758184918858,3.2078,4603.9,4602.9,3.2078]
[1758184919056,0.221,4604.3,4602.9,3.2078]
[1758184919257,0.3018,4603.4,4602.9,3.2078]
[1758184919466,0.2447,4604.0,4602.9,3.2078]
[1758184919666,0.3018,4603.4,4602.9,3.2078]
[1758184919861,0.1227,4603.5,4602.9,3.2078]
[1758184920064,0.4266,4603.0,4602.9,3.2078]
[1758184920263,0.1227,4603.5,4602.9,3.2078]
[1758184920569,0.8167,4603.5,4603.4,3.2078]
[1758184920971,0.1248,4603.0,4602.9,3.2078]
[1758184921265,0.4266,4603.0,4602.9,3.2078]
[1758184924068,0.8188,4603.0,4602.9,3.2078]
[1758184924667,0.8188,4603.0,4602.5,0.2437]
[1758184924971,0.8188,4603.0,4602.5,0.0217]
[1758184928168,0.21726,4602.9,4602.5,0.0217]
[1758184928377,0.6889,4602.6,4602.5,0.0217]
[1758184931473,0.9109,4602.6,4602.5,0.0217]
[1758184932971,0.9109,4602.6,4602.5,3.2295]
[1758184934772,0.9109,4602.6,4602.5,0.0217]
[1758184935975,0.4155,4602.5,4602.0,3.2078]
[1758184936582,0.1923,4602.1,4602.0,3.2078]
[1758184936775,0.4873,4602.1,4602.0,3.2078]
[1758184936978,0.6889,4602.1,4602.0,3.2078]
[1758184938779,0.4873,4602.1,4602.0,3.2078]
[1758184939978,0.6889,4602.1,4602.0,3.2078]
[1758184943680,0.6889,4602.1,4601.7,0.0217]
[1758184943887,0.6889,4601.8,4601.7,0.0217]
[1758184957197,1.19582431,4601.8,4601.7,0.0217]
[1758184957399,0.295,4601.8,4601.7,4.0217]
[1758184957585,0.295,4601.8,4601.7,4.23900999]
[1758184957888,0.295,4601.8,4601.7,4.0217]
[1758184959288,0.4918,4601.8,4601.7,0.0217]
[1758184959485,0.4079,4602.0,4601.7,0.23900999]
[1758184959688,0.1205,4602.0,4601.8,0.221]
[1758184959888,0.2874,4601.9,4601.8,4.221]
[1758184963102,0.2874,4601.9,4601.8,4.61199]
[1758184963394,0.2874,4601.9,4601.8,4.221]
[1758184964292,0.2874,4601.9,4601.8,4.61199]
[1758184964600,0.2874,4601.9,4601.8,4.221]
[1758184973407,0.4842,4601.9,4601.8,4.221]
[1758184974811,0.6766,4601.9,4601.6,0.0217]
[1758184975211,0.6766,4601.9,4601.7,0.221]
[1758184975513,0.6766,4601.9,4601.6,0.0217]
[1758184975713,0.6766,4601.9,4601.8,0.221]
[1758184976715,0.6766,4601.9,4601.6,0.0217]
[1758184977011,0.6766,4601.9,4601.7,0.221]
[1758184980105,0.6766,4601.9,4601.6,0.0217]
[1758184982011,0.6766,4601.9,4600.1,1.93968194]
[1758184982012,0.4171,4601.7,4601.0,3.2078]
[1758184982213,0.5984,4601.1,4601.0,3.2078]
[1758184982611,0.5984,4601.1,4601.0,3.522]
[1758184982818,0.5984,4601.1,4601.0,3.8526]
[1758184983212,0.5984,4601.1,4601.0,3.522]
[1758184983517,4.5984,4601.1,4601.0,3.2078]
[1758184984319,0.5984,4601.1,4601.0,3.522]
[1758184984620,0.5984,4601.1,4601.0,3.6444]
[1758184987218,0.5984,4601.1,4601.0,3.8511]
[1758184987219,0.4171,4601.1,4601.0,3.8511]
[1758184988822,0.5989,4601.1,4601.0,3.8511]
[1758184989920,0.5989,4601.1,4601.0,3.6444]
[1758184990119,4.5989,4601.1,4601.0,3.2078]
[1758184992023,0.4171,4601.1,4601.0,4.0354]
[1758184992225,0.6381,4601.1,4601.0,4.0354]
[1758184992721,0.6381,4601.1,4600.0,0.73454]
[1758184992722,0.1651,4601.0,4599.0,0.1198]
[1758184992917,3.2078,4599.6,4599.5,0.3206]
[1758184993123,3.4308,4599.6,4599.5,0.3206]
[1758184993523,3.2078,4599.6,4599.5,0.3206]
[1758184993715,3.4308,4599.6,4599.5,0.3206]
[1758184994318,3.4308,4599.6,4599.5,0.1139]
[1758184994724,3.4308,4599.6,4599.5,0.4222]
[1758184996624,3.2078,4599.6,4599.5,0.4222]
[1758184996926,3.4308,4599.6,4599.5,0.4222]
[1758184997825,7.2078,4599.6,4599.1,0.3083]
[1758184998123,0.223,4599.5,4599.0,0.1198]
[1758184998315,0.223,4599.5,4599.0,0.4281]
[1758184998316,3.2078,4599.1,4599.0,0.4281]
[1758184998520,3.4308,4599.1,4599.0,0.4281]
[1758185000522,3.4308,4599.1,4598.5,0.1198]
[1758185000523,0.3974,4598.6,4598.5,0.5193]
[1758185000831,3.8282,4598.6,4598.5,0.5193]
[1758185002730,4.0612,4598.6,4598.5,0.8276]
[1758185003130,3.8282,4598.6,4598.5,0.8276]
[1758185008232,4.0612,4598.6,4598.5,0.8276]
[1758185011636,4.0612,4598.6,4598.5,0.6348]
[1758185012039,4.0612,4598.6,4598.5,0.3083]
[1758185014132,0.233,4598.5,4598.3,0.3083]
[1758185014331,0.8524,4598.4,4598.3,0.3083]
[1758185014537,1.36492753,4598.4,4598.2,0.02174788]
[1758185014740,1.14292753,4598.3,4598.2,0.02174788]
[1758185015139,1.14292753,4598.3,4598.2,0.33004788]
[1758185017443,1.38005709,4598.3,4598.2,0.33004788]
[1758185018035,0.2078,4597.7,4597.6,0.2994]
[1758185018230,0.6335,4597.7,4597.6,0.7129]
[1758185020743,0.6447,4597.6,4597.0,0.1198]
[1758185020948,0.6447,4597.1,4597.0,0.1198]
[1758185021147,0.8667,4597.1,4597.0,0.3271]
[1758185021348,1.61827345,4597.1,4597.0,0.3271]
[1758185021542,1.61817786,4597.1,4597.0,0.6265]
[1758185021742,1.38053499,4597.1,4597.0,0.6265]
[1758185022242,1.38053499,4597.1,4597.0,0.4192]
[1758185022436,1.61035984,4597.1,4597.0,0.6265]
[1758185023444,1.61035984,4597.1,4597.0,0.4192]
[1758185023652,1.61035984,4597.1,4597.0,0.2994]
[1758185024148,1.37715984,4597.1,4596.5,0.1198]
[1758185024349,0.2037,4596.7,4596.6,0.2994]
[1758185024550,1.38053499,4596.7,4596.6,0.2994]
[1758185024953,1.61022979,4596.7,4596.6,0.2994]
[1758185026247,1.37702979,4596.7,4596.6,0.7129]
[1758185026450,1.37688428,4596.7,4596.6,0.7129]
[1758185026649,0.92533499,4596.7,4596.6,0.7129]
[1758185026851,1.14733499,4596.7,4596.6,0.7129]
[1758185027846,0.73583499,4596.7,4596.6,0.7129]
[1758185028351,0.51383499,4596.7,4596.6,0.7129]
[1758185028551,3.4298,4596.8,4596.6,4.7129]
[1758185028754,3.4298,4596.8,4596.7,0.7129]
[1758185030851,3.2078,4596.8,4596.7,0.7129]
[1758185031055,3.4298,4596.8,4596.7,0.7129]
[1758185034258,3.2078,4596.8,4596.7,0.7129]
[1758185034457,3.4298,4596.8,4596.7,4.7129]
[1758185037654,0.222,4596.8,4596.7,4.7129]
[1758185038358,3.2078,4597.6,4596.7,4.80491]
[1758185038658,0.7039,4597.4,4597.3,0.7154]
[1758185039353,0.222,4597.4,4597.3,0.7154]
[1758185039554,3.2078,4597.6,4597.5,0.1155]
[1758185039760,3.4298,4597.6,4597.5,0.8309]
[1758185040258,3.94,4597.6,4597.5,0.8309]
[1758185041462,4.1337,4597.6,4597.5,0.7154]
[1758185042462,3.9117,4597.6,4597.5,0.7154]
[1758185042764,4.1337,4597.6,4597.5,0.7154]
[1758185044360,3.9117,4597.6,4597.5,0.7154]
[1758185044553,4.1337,4597.6,4597.5,0.7154]
[1758185045661,4.1327,4597.6,4597.5,0.7154]
[1758185048861,0.326,4597.5,4597.4,0.2065]
[1758185049071,0.4186,4597.5,4597.4,0.7095]
[1758185049567,0.7101,4597.5,4597.4,0.7095]
[1758185055463,0.2915,4598.0,4597.4,4.0]
[1758185055672,0.7101,4598.3,4598.2,0.7095]
[1758185056167,0.9311,4598.3,4598.2,0.7095]
[1758185057169,0.9311,4598.3,4598.2,0.5151]
[1758185057365,0.2915,4598.2,4597.5,0.51305]
[1758185057570,0.2083,4597.7,4597.6,0.7095]
[1758185058065,0.4998,4597.7,4597.6,0.7095]
[1758185066570,0.7101,4597.7,4597.6,0.7095]
[1758185069374,0.7101,4597.7,4597.6,0.5151]
[1758185072881,0.7101,4597.7,4597.3,0.0217]
[1758185073086,0.7101,4597.7,4597.4,0.3086]
[1758185073384,0.5343,4597.5,4597.4,0.3086]
[1758185073591,0.8258,4597.5,4597.4,0.5151]
[1758185074389,0.7101,4597.5,4597.4,0.7095]
[1758185085595,0.8286,4597.5,4597.4,0.3086]
[1758185085800,4.0364,4597.5,4597.2,0.0217]
[1758185086599,4.2574,4597.5,4597.2,0.0217]
[1758185088603,0.6923,4597.3,4597.2,0.0217]
[1758185088901,0.6923,4597.3,4596.6,0.2886]
[1758185092003,0.6923,4597.3,4596.7,0.0217]
[1758185092202,0.1185,4597.0,4596.7,0.0217]
[1758185092404,0.6923,4596.8,4596.7,0.0217]
[1758185093108,0.6923,4596.8,4596.7,0.3103]
[1758185093403,0.6923,4596.8,4596.7,0.0217]
[1758185095303,4.6923,4596.8,4596.7,0.0217]
[1758185100410,4.9133,4596.8,4596.7,0.0217]
[1758185103104,0.9133,4596.8,4596.7,0.0217]
[1758185103813,0.9133,4596.8,4595.5,3.3295]
[1758185103814,0.6876,4595.8,4595.7,0.5044]
[1758185104013,0.6876,4595.8,4595.7,0.7005]
[1758185105616,0.1978,4595.8,4595.7,1.092]
[1758185105812,0.1978,4595.8,4595.7,0.7005]
[1758185106014,0.2971,4596.1,4595.7,0.7858]
[1758185106210,0.2971,4596.1,4596.0,0.8348]
[1758185106211,0.4985,4596.1,4596.0,0.8348]
[1758185109219,3.2078,4596.5,4596.1,0.3183]
[1758185109520,3.2078,4596.5,4596.4,0.7086]
[1758185110013,3.7063,4596.5,4596.4,0.7086]
[1758185111215,0.4985,4596.5,4596.4,0.7086]
[1758185112111,0.2014,4596.1,4596.0,0.1262]
[1758185112315,0.2014,4596.0,4595.5,3.3295]
[1758185112620,0.7026,4596.0,4595.9,0.1939]
[1758185112816,0.7026,4596.0,4595.9,0.5122]
[1758185114219,0.7026,4596.0,4595.9,0.7086]
[1758185116123,0.7026,4596.0,4595.9,0.5122]
[1758185116326,0.8181,4596.0,4595.9,0.5122]
[1758185116926,0.7026,4596.0,4595.9,0.7086]
[1758185117127,0.4055,4596.0,4595.9,0.7086]
[1758185118122,0.7026,4596.0,4595.9,0.7086]
[1758185122432,3.4092,4596.5,4596.4,0.7086]
[1758185122828,3.7063,4596.5,4596.4,0.7086]
[1758185123533,3.9104,4596.5,4596.4,0.7086]
[1758185124426,4.53905659,4596.5,4596.4,0.5122]
[1758185124824,4.53905659,4596.5,4596.1,0.3183]
[1758185125031,4.0259,4596.5,4596.0,0.1262]
[1758185125724,0.51322556,4596.4,4596.1,0.3183]
[1758185125928,0.7026,4596.2,4596.1,0.3183]
[1758185126132,0.7026,4596.2,4595.5,0.1217]
[1758185126433,0.7026,4596.2,4595.6,0.3183]
[1758185126628,0.2014,4595.7,4595.6,0.5122]
[1758185126834,0.7026,4595.7,4595.6,0.7086]
[1758185128749,0.7026,4595.7,4595.6,0.3183]
[1758185128940,0.4055,4595.7,4595.4,0.3183]
[1758185129243,3.3233,4596.0,4595.4,0.5122]
[1758185129244,0.7026,4595.5,4595.4,0.5122]
[1758185130140,3.2078,4596.0,4595.3,0.43522256]
[1758185130345,0.7026,4595.4,4595.3,0.62912256]
[1758185130746,0.7026,4595.4,4595.3,0.94742256]
[1758185131346,0.7026,4595.4,4595.3,1.14382256]
[1758185132636,0.7026,4595.4,4595.3,0.94742256]
[1758185135745,0.7026,4595.4,4595.3,0.43522256]
[1758185137746,0.9236,4595.4,4595.3,0.43522256]
[1758185138455,1.43603794,4595.4,4595.3,0.43522256]
[1758185139554,1.43594429,4595.4,4595.3,0.43522256]
[1758185140355,0.9236,4595.4,4595.3,0.43522256]
[1758185140550,1.43587259,4595.4,4595.3,0.43522256]
[1758185140854,0.833,4595.0,4594.9,0.0058]
[1758185141055,4.2618,4595.0,4594.9,0.3192]
[1758185141250,4.2618,4595.0,4594.9,0.3134]
[1758185141652,4.2618,4595.0,4594.9,0.5116]
[1758185143546,3.9732,4595.0,4594.4,0.3134]
[1758185143753,0.4196,4594.6,4594.5,0.5138]
[1758185143954,0.7082,4594.6,4594.5,0.8272]
[1758185144747,0.4196,4594.6,4594.5,0.8272]
[1758185145148,0.221,4594.8,4594.5,0.8272]
[1758185145450,0.4327,4594.8,4594.7,0.704]
[1758185145855,0.7213,4594.8,4594.7,0.704]
[1758185146152,0.221,4594.8,4594.7,0.704]
[1758185146453,3.2078,4595.0,4594.8,0.3134]
[1758185146660,3.6405,4595.0,4594.9,0.3906]
[1758185146862,3.6405,4595.0,4594.9,0.704]
[1758185146863,4.137,4595.0,4594.9,0.704]
[1758185148160,3.8484,4595.0,4594.9,0.704]
[1758185148457,4.137,4595.0,4594.9,0.704]
[1758185148654,0.5003,4595.5,4595.4,0.3906]
[1758185148855,0.9292,4595.5,4595.4,0.704]
[1758185149564,0.4327,4595.5,4595.4,0.704]
[1758185149857,3.2078,4595.6,4595.5,0.8272]
[1758185150757,0.2117,4596.0,4595.9,0.3906]
[1758185150958,0.2117,4596.0,4595.9,0.704]
[1758185151454,1.56024249,4598.0,4596.6,0.3906]
[1758185151455,3.2078,4596.7,4596.6,0.3906]
[1758185151660,3.2078,4596.7,4596.6,0.704]
[1758185151863,3.4195,4596.7,4596.6,0.704]
[1758185152360,0.2117,4596.7,4596.6,0.704]
[1758185153262,0.5096,4597.0,4596.7,0.3134]
[1758185153562,0.5096,4597.0,4596.9,0.3906]
[1758185153563,0.7213,4597.0,4596.9,0.3906]
[1758185153760,0.9292,4597.0,4596.9,0.704]
[1758185153960,0.7082,4597.0,4596.9,0.704]
[1758185158969,0.7082,4597.0,4596.9,0.5116]
[1758185162364,0.7082,4597.0,4596.9,0.7215]
[1758185164865,0.8346,4597.0,4596.5,0.1232]
[1758185165073,0.5179,4596.3,4596.2,0.7209]
[1758185165374,0.7113,4596.3,4596.2,0.7209]
[1758185166166,0.7113,4596.3,4596.2,0.511]
[1758185166368,0.3915,4595.8,4595.7,0.4924]
[1758185166564,0.6959,4595.8,4595.7,0.4924]
[1758185167474,0.6959,4595.8,4594.8,0.221]
[1758185167672,0.221,4595.7,4595.5,0.29]
[1758185167860,0.1168,4595.5,4595.2,0.29]
[1758185168165,0.8127,4595.5,4594.6,3.3668]
[1758185168367,3.2078,4595.9,4595.1,0.6879]
[1758185168664,3.2078,4595.9,4595.8,0.6879]
[1758185169060,3.2078,4596.4,4596.0,0.1214]
[1758185169373,3.6253,4596.4,4596.3,0.6879]
[1758185170177,3.9297,4596.4,4596.3,0.6879]
[1758185170773,3.6253,4596.4,4596.3,0.6879]
[1758185170966,3.4043,4596.4,4596.3,0.6879]
[1758185171169,0.5009,4596.7,4596.6,0.3979]
[1758185171467,0.5009,4596.7,4596.6,0.6879]
[1758185171670,0.6959,4596.7,4596.6,0.6879]
[1758185172274,0.6959,4596.7,4596.6,0.4924]
[1758185175169,0.6959,4596.7,4596.2,0.0121]
[1758185175368,3.9037,4596.4,4596.2,0.0121]
[1758185175573,0.9169,4596.3,4596.2,0.0121]
[1758185176769,0.6959,4596.3,4596.2,0.0121]
[1758185177075,0.9169,4596.3,4596.2,0.0121]
[1758185178373,1.42855318,4596.3,4596.2,0.0121]
[1758185180077,1.42855318,4596.3,4595.7,0.29]
[1758185180271,3.9037,4595.9,4595.8,0.6879]
[1758185180575,4.1247,4595.9,4595.8,0.6879]
[1758185181780,4.1247,4595.9,4595.5,0.1214]
[1758185181979,4.1247,4595.9,4595.1,0.29]
[1758185182675,3.9037,4595.9,4595.8,0.2024]
[1758185182876,4.1247,4595.9,4595.8,0.4924]
[1758185184485,3.9037,4595.9,4595.8,0.4924]
[1758185184690,4.1247,4595.9,4595.8,0.4924]
[1758185185084,4.1247,4595.9,4595.5,0.3025]
[1758185185281,4.1247,4595.9,4595.5,0.0125]
[1758185186182,0.3915,4595.6,4595.5,0.0125]
[1758185186383,0.9169,4595.6,4595.5,0.0125]
[1758185188277,0.3915,4594.8,4594.7,0.29]
[1758185188482,0.6959,4594.8,4594.7,0.29]
[1758185189083,0.6959,4594.8,4594.7,0.4924]
[1758185196190,0.6959,4594.8,4594.7,0.6879]
[1758185196387,3.2078,4595.1,4595.0,0.8024]
[1758185196593,3.2078,4595.6,4595.5,0.5132]
[1758185196788,3.2078,4595.6,4595.5,0.8024]
[1758185200190,3.4151,4595.6,4595.5,0.8024]
[1758185204199,3.2078,4595.6,4595.5,0.8024]
[1758185204401,3.4151,4595.6,4595.5,0.8024]
[1758185204795,3.7057,4595.6,4595.5,0.8024]
[1758185205598,3.4151,4595.6,4595.5,0.8024]
[1758185207202,3.2078,4596.2,4595.5,4.7308]
[1758185207499,3.4151,4596.2,4596.1,0.6857]
[1758185207802,0.4979,4596.2,4596.1,0.6857]
[1758185208492,0.6998,4596.2,4596.1,0.6857]
[1758185208695,0.6998,4596.2,4596.1,1.07717]
[1758185208894,0.221,4596.7,4596.1,1.07717]
[1758185209201,43.52859224,4599.2,4596.0,0.1167]
[1758185209202,0.2906,4597.8,4597.7,0.39133]
[1758185209397,0.6998,4597.8,4597.7,0.88123]
[1758185211495,0.221,4598.0,4597.9,0.39132]
[1758185211700,0.2073,4598.2,4598.1,1.077]
[1758185212802,4.1286,4598.6,4598.5,1.07697]
[1758185213103,3.9076,4598.6,4598.5,1.07697]
[1758185215000,0.6998,4598.6,4598.5,1.07697]
[1758185216002,0.2073,4598.6,4598.5,1.19587]
[1758185216191,0.512,4599.3,4599.2,1.11681]
[1758185216599,0.7095,4599.3,4599.2,1.11681]
[1758185217606,0.7095,4599.3,4599.2,0.7256]
[1758185220498,0.8262,4599.0,4598.6,0.3138]
[1758185220696,0.3059,4598.9,4598.3,3.5216]
[1758185220898,0.2061,4598.4,4598.3,3.9334]
[1758185223606,0.7095,4598.4,4598.3,4.1544]
[1758185224601,0.7095,4598.4,4598.3,3.7426]
[1758185224802,0.7095,4598.4,4598.3,3.9473]
[1758185225003,0.7095,4598.4,4598.3,4.1544]
[1758185225209,0.7095,4598.4,4598.3,3.9334]
[1758185227315,0.2061,4598.4,4598.3,3.9334]
[1758185227610,3.5228,4599.2,4598.7,0.6752]
[1758185227808,3.4003,4599.2,4599.1,0.6752]
[1758185228114,3.2078,4599.2,4599.1,0.6752]
[1758185228901,3.69261,4599.9,4599.2,0.2892]
[1758185229106,0.6425,4599.4,4599.3,0.6752]
[1758185233015,1.1487,4599.4,4599.3,0.6752]
[1758185237715,0.8337,4599.4,4599.3,0.6752]
[1758185237919,1.1487,4599.4,4599.3,0.6752]
[1758185239520,0.6425,4599.4,4599.3,0.6752]
[1758185239716,0.45,4599.4,4599.3,0.6752]
[1758185240021,0.45,4599.4,4599.3,0.8952]
[1758185242212,0.16981,4599.9,4599.5,0.1155]
[1758185242414,3.9065,4600.6,4600.5,0.386]
[1758185242612,3.9065,4600.6,4600.5,0.6752]
[1758185242613,4.41636764,4600.6,4600.5,0.6752]
[1758185243317,4.10136764,4600.6,4600.5,0.7907]
[1758185244020,4.41636764,4600.6,4600.5,0.7907]
[1758185244217,4.41636764,4600.6,4600.5,0.6752]
[1758185244419,0.3837,4600.4,4600.2,0.22]
[1758185244617,1.20856764,4600.3,4599.7,0.2892]
[1758185244819,0.6987,4600.1,4600.0,0.5092]
[1758185245018,1.20856764,4600.1,4600.0,0.7025]
[1758185245219,1.20856764,4600.1,4600.0,0.8952]
[1758185248124,0.6987,4600.1,4600.0,0.6752]
[1758185248528,0.6987,4600.1,4600.0,0.4825]
[1758185248715,0.6987,4600.1,4599.8,0.22]
[1758185248915,0.1255,4600.0,4599.7,0.2892]
[1758185249121,0.6987,4599.8,4599.7,0.5092]
[1758185249321,0.6987,4599.8,4599.7,0.4825]
[1758185249526,1.20807695,4599.8,4599.7,0.1933]
[1758185249726,1.20807695,4599.8,4599.6,0.5092]
[1758185250027,0.6987,4599.7,4599.6,0.5092]
[1758185250425,1.20810778,4599.7,4599.4,0.2892]
[1758185250736,0.3837,4599.7,4599.6,0.4825]
[1758185250928,0.3837,4599.7,4599.6,0.6752]
[1758185251128,1.20809271,4599.7,4599.6,0.6752]
[1758185251323,0.6987,4599.7,4599.6,0.6752]
[1758185252725,0.3837,4599.7,4599.6,0.6752]
[1758185252930,0.6987,4599.7,4599.6,0.6752]
[1758185254931,0.3837,4599.7,4599.6,0.6752]
[1758185255131,0.1925,4599.7,4599.6,0.6752]
[1758185256435,0.6906,4599.7,4599.6,0.8952]
[1758185260347,3.2078,4600.6,4600.0,0.1168]
[1758185260552,0.6995,4601.3,4601.2,0.7023]
[1758185264353,0.6995,4601.3,4601.2,0.4914]
[1758185264755,0.6995,4601.3,4601.2,0.7023]
[1758185267750,0.6995,4601.3,4600.7,0.2889]
[1758185267950,3.9073,4601.3,4600.7,0.2889]
[1758185268353,0.6995,4600.8,4600.3,0.22]
[1758185268846,0.4981,4600.7,4600.6,0.2025]
[1758185269052,0.6995,4600.7,4600.6,0.4914]
[1758185269253,0.6995,4600.7,4600.6,0.7023]
[1758185269448,0.2014,4600.7,4600.6,0.7023]
[1758185269650,0.4984,4601.3,4601.2,0.4134]
[1758185269851,0.2014,4601.3,4601.2,0.7023]
[1758185270354,0.4984,4601.3,4601.2,0.7023]
[1758185270752,0.2014,4601.3,4601.2,0.7023]
[1758185272862,3.7062,4601.8,4601.7,0.4134]
[1758185273058,3.9073,4601.8,4601.7,0.7023]
[1758185273262,0.2014,4601.8,4601.7,0.7023]
[1758185273459,0.297,4602.7,4602.2,0.2889]
[1758185273761,0.7219,4602.3,4602.2,0.6947]
[1758185276657,8.36699,4602.3,4602.0,0.0217]
[1758185277249,0.21729,4602.2,4602.0,0.0217]
[1758185277456,0.7225,4602.1,4602.0,0.0217]
[1758185277856,0.9435,4602.1,4602.0,0.0217]
[1758185278559,0.9435,4602.1,4602.0,0.3348]
[1758185278951,0.7225,4602.1,4602.0,0.7406]
[1758185280364,0.7225,4602.1,4602.0,0.0217]
[1758185281865,4.7225,4602.1,4602.0,0.0217]
[1758185282960,4.9435,4602.1,4602.0,0.0217]
[1758185285858,0.1212,4601.5,4600.6,0.2991]
[1758185286065,0.7334,4600.7,4600.6,0.7006]
[1758185286260,0.3121,4601.3,4600.7,0.2991]
[1758185286455,0.5218,4601.3,4601.2,0.7006]
[1758185287664,0.2097,4601.3,4601.2,0.7006]
[1758185289266,0.5218,4601.3,4601.2,0.7006]
[1758185289463,0.7334,4601.3,4601.2,0.7006]
[1758185293768,0.221,4601.6,4601.3,0.2991]
[1758185293969,0.50441529,4601.5,4601.4,0.7006]
[1758185294574,0.71411529,4601.5,4601.4,0.7006]
[1758185295774,0.50441529,4601.5,4601.4,0.7006]
[1758185296777,3.2078,4601.9,4601.8,0.4015]
[1758185296976,3.92188499,4601.9,4601.8,0.7006]
[1758185297576,4.44558499,4601.9,4601.8,0.7006]
[1758185297875,4.44558499,4601.9,4601.6,0.2991]
[1758185298077,0.7334,4601.7,4601.6,0.2991]
[1758185298472,0.7334,4601.7,4601.6,0.5005]
[1758185298677,1.23780481,4601.7,4601.1,0.2991]
[1758185298877,0.2097,4601.2,4601.1,0.7006]
[1758185299175,0.2097,4601.8,4601.7,0.7006]
[1758185299478,3.4175,4602.4,4602.3,0.4015]
[1758185299682,3.2078,4602.4,4602.3,0.4015]
[1758185299875,0.3121,4602.9,4602.3,0.4015]
[1758185300082,0.2097,4602.8,4602.7,0.7006]
[1758185301076,3.2078,4603.0,4602.8,0.2991]
[1758185301281,3.2078,4603.0,4602.9,0.7006]
[1758185301683,0.022,4603.2,4602.9,0.7006]
[1758185301883,0.2317,4603.2,4603.1,0.7006]
[1758185303785,0.7554,4603.2,4603.1,0.7006]
[1758185308285,0.7334,4602.7,4602.6,0.7006]
[1758185308684,0.4213,4602.7,4602.6,0.7006]
[1758185308884,0.7334,4602.7,4602.6,0.7006]
[1758185312189,0.4213,4602.7,4602.6,0.7006]
[1758185312379,0.2097,4602.8,4602.7,0.2991]
[1758185312587,0.2097,4602.8,4602.7,0.7006]
[1758185312786,0.7334,4602.8,4602.7,0.7006]
[1758185314894,0.7334,4602.8,4602.7,0.5005]
[1758185315888,0.4213,4602.8,4602.1,0.3007]
[1758185316195,0.1916,4602.2,4602.1,0.7048]
[1758185317593,0.3131,4602.5,4602.1,0.4041]
[1758185317793,0.5047,4602.5,4602.4,0.4041]
[1758185317995,0.5047,4602.5,4602.4,0.7048]
[1758185318290,0.3131,4603.0,4602.5,0.1206]
[1758185318592,0.7147,4603.0,4602.9,0.5027]
[1758185319788,0.7147,4603.0,4602.5,0.1206]
[1758185319995,0.8323,4603.0,4602.6,0.3007]
[1758185320195,0.8323,4603.0,4602.5,0.1206]
[1758185320593,0.8323,4603.0,4602.6,0.3007]
[1758185320792,0.4016,4603.0,4602.9,0.5027]
[1758185321391,0.7147,4603.0,4602.9,0.5027]
[1758185321892,3.2298,4603.2,4602.9,0.7048]
[1758185322102,0.022,4603.2,4603.1,0.7048]
[1758185322798,0.2136,4603.2,4603.1,0.7048]
[1758185323306,0.7367,4603.2,4603.1,0.7048]
[1758185327101,0.7367,4603.2,4602.7,0.22]
[1758185327304,0.7367,4603.2,4602.8,0.3007]
[1758185327703,0.7367,4603.2,4602.7,0.22]
[1758185327901,0.7367,4603.2,4602.8,0.3007]
[1758185328100,0.7367,4603.2,4602.7,0.22]
[1758185328296,0.4236,4603.2,4602.7,0.22]
[1758185328502,0.7367,4603.2,4603.1,0.5027]
[1758185329004,0.7367,4603.2,4603.1,0.7048]
[1758185332009,1.24160063,4603.2,4603.1,0.7048]
[1758185339414,0.52690063,4603.2,4603.1,0.7048]
[1758185339614,1.26210063,4603.2,4603.1,0.7048]
[1758185340008,1.26210063,4603.2,4603.1,0.5027]
[1758185340210,1.26210063,4603.2,4602.7,0.3105]
[1758185340409,0.7352,4602.7,4602.6,0.5284]
[1758185340609,1.24008619,4602.7,4602.6,0.5284]
[1758185340813,1.24008619,4602.7,4602.6,0.5067]
[1758185341014,1.24008619,4602.7,4602.6,0.3105]
[1758185341815,1.24008619,4602.7,4602.6,0.5067]
[1758185342113,0.7352,4602.7,4602.6,0.5067]
[1758185342314,0.7352,4602.7,4602.6,0.7179]
[1758185342513,0.3165,4603.1,4602.6,0.7179]
[1758185342704,3.965,4603.2,4603.1,0.4074]
[1758185342911,4.71600695,4603.2,4603.1,0.7179]
[1758185344916,4.71600695,4603.2,4603.1,0.5067]
[1758185345304,4.71600695,4603.2,4602.7,0.0217]
[1758185345510,0.7214,4602.9,4602.8,0.5127]
[1758185345813,0.7214,4602.9,4602.7,0.0217]
[1758185346008,0.4071,4602.9,4602.7,0.3369]
[1758185346309,0.4071,4602.9,4602.7,0.0217]